Cogmind - Beta 15 @@@ ROGUE MODE // 2025.08.23 @ 23:35:57 Player: Kei Shin Result: Destroyed by as-23121 with Assembled Rifle Performance ------------- Evolutions (0) 0 Regions Visited (3) 600 Robots Destroyed (13) 65 Value Destroyed (188) 188 Prototype IDs (0) 0 Alien Tech Used (0) 0 Bonus (300) 300 TOTAL SCORE: 1153 Bonus ------- Aligned with FarCom 300 Cogmind --------- Core Integrity 0/250 Matter 153/300 Energy 9/100 System Corruption 20% Temperature Cool (20) Movement Core (50) Location -10/Exiles Parts ------- > --- POWER (1) -------- (None) > --- PROPULSION (2) --- (None) > --- UTILITY (2) ------ (None) > --- WEAPON (2) ------- Light Assault Rifle > --- INVENTORY (5) ---- Heat Sink Large Battery (200) High-capacity Battery (250) Peak State ------------ > --- POWER ------------ Light Ion Engine > --- PROPULSION ------- Wheel Wheel > --- UTILITY ---------- High-capacity Battery Shield Generator > --- WEAPON ----------- Light Assault Rifle Grenade Launcher > --- INVENTORY -------- Aluminum Leg Aluminum Leg Heat Sink Light Assault Rifle [Rating: 8] Favorites ----------- Power Light Ion Engine Engine Light Ion Engine Propulsion Wheel Wheel Wheel Utility Shield Generator Device Shield Generator Storage High-capacity Battery Processor Targeting Computer Weapon Grenade Launcher Energy Gun Medium Laser Ballistic Gun Light Assault Rifle Launcher Grenade Launcher Build | -11 -10 -10 -10 ------- Run | Yrd Mat Min Exi Slots Evolved . | . . . . Power . | . . . . Propulsion . | . . . . Utility . | . . . . Weapon . | . . . . Parts Attached 16 | 5 7 2 2 Power 2 | 1 1 . . Engine 2 | 1 1 . . Core . | . . . . Reactor . | . . . . Propulsion 2 | 2 . . . Treads . | . . . . Leg . | . . . . Wheel 2 | 2 . . . Hover . | . . . . Flight . | . . . . Utility 5 | . 4 1 . Device 2 | . 2 . . Storage 1 | . 1 . . Processor 2 | . 1 1 . Hackware . | . . . . Protection . | . . . . Artifact . | . . . . Weapon 7 | 2 2 1 2 Energy Gun 2 | 2 . . . Energy Cannon . | . . . . Ballistic Gun 2 | . 1 . 1 Ballistic Cannon . | . . . . Launcher 3 | . 1 1 1 Special Weapon . | . . . . Impact Weapon . | . . . . Slashing Weapon . | . . . . Piercing Weapon . | . . . . Special Melee Weapon . | . . . . Unidentified Prototypes . | . . . . Parts Lost 10 | . 4 . 6 Power 1 | . . . 1 Propulsion 2 | . 2 . . Utility 4 | . 2 . 2 Weapon 3 | . . . 3 Highest Loss Streak 6 | . 4 . 6 To Critical Strikes 1 | . . . 1 Average Backups 4 | 3 4 4 4 Power . | . . . . Propulsion 1 | 1 1 . . Utility 1 | . 2 3 3 Weapon 1 | 1 1 1 1 Tool/Special . | . . . . Unused Backups 5 | . 3 . 2 Power . | . . . . Propulsion 2 | . 2 . . Utility 2 | . . . 2 Weapon 1 | . 1 . . Tool/Special . | . . . . Average Slot Usage (%) 72 | . 83 67 70 Engine 13 | . 12 14 13 Wheel 4 | . 25 . . Device 12 | . 9 12 13 Processor 12 | . 4 12 13 Ballistic Gun 4 | . 12 8 . Launcher 23 | . 12 18 27 Peak Build Rating 8 | 5 8 6 6 Average Rating 5 | 4 6 5 5 On Entrance 3 | . 5 3 6 Naked Turns . | . . . . Heaviest Build 13 | 6 13 11 11 Greatest Support 20 | 20 20 3 3 Greatest Overweight (x) 3 | . 2 3 3 Average Overweight (x) 1 | . . 2 2 Largest Inventory Capacity 5 | 5 5 5 5 Average Capacity 5 | 5 5 5 5 Most Carried 5 | 5 5 5 5 Average Carried 4 | 3 4 4 4 Final Capacity 5 | 5 5 5 5 Final Carried 5 | 4 5 5 3 Class Distribution -------------------- 100% | Mutant Dominant Class ---------------- Mutant | -10/Materials Mutant | -10/Mines Mutant | -10/Exiles Resources | -11 -10 -10 -10 ----------- Run | Yrd Mat Min Exi Matter Collected 396 | 250 110 36 . Remotely . | . . . . Salvage Created 171 | 42 124 . 5 Parts 18 | 2 16 . . Haulers Intercepted . | . . . . Recyclers Shooed . | . . . . Parts Field Recycled . | . . . . Retrieved Matter . | . . . . Parts Self-Destructed . | . . . . Prevented . | . . . . Kills | -11 -10 -10 -10 ------- Run | Yrd Mat Min Exi Combat Hostiles Destroyed 14 | 1 10 . 3 Guns 4 | 1 3 . . AOE 10 | . 7 . 3 Classes Destroyed 4 | 1 2 . 1 Builder 2 | . 2 . . Swarmer 9 | . 9 . . Grunt 2 | 1 1 . . Assembled 3 | . . . 3 Best Kill Streak 5 | 1 5 . 3 Combat Bots Only 3 | 1 3 . 3 Max Kills in Single Turn 3 | 1 3 . 2 Gunslinging . | . . . . Exploded 2 | . 2 . 2 Melee . | . . . . Uniques/NPCs Destroyed . | . . . . Combat | -11 -10 -10 -10 -------- Run | Yrd Mat Min Exi Hostile Shots Fired 58 | 4 27 . 27 Missed 18 | 2 11 . 5 Hits 40 | 2 16 . 22 Melee 4 | . . . 4 Projectile 36 | 2 16 . 18 Critical Strikes 2 | . . . 2 Part Disruptions 1 | . . . 1 Damage Taken 790 | 23 457 . 310 Core 261 | 11 129 . 121 Absorbed by Shields 57 | . 20 . 37 Core Remaining (%) 95 | 95 . . . Volleys Fired 28 | 3 21 . 4 Largest 2 | 2 2 . 2 Hottest 90 | 90 50 . 60 Shots Fired 41 | 6 28 1 6 Gun 29 | 6 21 1 1 Cannon . | . . . . Launcher 12 | . 7 . 5 Special . | . . . . Kinetic 23 | . 21 1 1 Thermal 6 | 6 . . . Explosive 12 | . 7 . 5 Electromagnetic . | . . . . Robot Hit Streak 5 | 4 5 . 1 Robot Miss Streak 3 | 1 3 1 . Penetration Max . | . . . . Secondary Targets . | . . . . Shots Hit Robots 16 | 4 11 . 1 Core Hits 24 | 2 15 . 7 Critical Kills . | . . . . Critical Parts Destroyed . | . . . . Critical Strikes . | . . . . Melee Attacks . | . . . . Impact . | . . . . Slashing . | . . . . Piercing . | . . . . Sneak Attacks . | . . . . Combat Hostiles . | . . . . Follow-up Attacks . | . . . . Damage Inflicted 884 | 48 601 . 235 Guns 156 | 48 98 . 10 Cannons . | . . . . Explosions 724 | . 499 . 225 Melee . | . . . . Ramming 4 | . 4 . . Kinetic 108 | . 98 . 10 Thermal 48 | 48 . . . Explosive 724 | . 499 . 225 Electromagnetic . | . . . . Impact . | . . . . Slashing . | . . . . Piercing . | . . . . Highest Corruption 20 | . 11 11 20 Average Corruption 11 | . 11 11 11 Corruption Purged . | . . . . Corruption Blocked . | . . . . Effects 77 | . 1 21 55 Message Errors 21 | . . 5 16 Matter Fused 12 | . . 3 9 Heat Flow Errors 12 | . . 1 11 Energy Discharges 6 | . . 2 4 Data Loss (minor) 13 | . . 5 8 Data Loss (major) 7 | . . 3 4 Misfires 3 | . 1 1 1 Alerts 3 | . . 1 2 Overload Shots . | . . . . Overflow Damage 20 | . . . 20 Projectiles . | . . . . Explosions 20 | . . . 20 Melee . | . . . . Knockbacks . | . . . . Impact . | . . . . Kinetic . | . . . . Secondary . | . . . . Self-Inflicted Damage 37 | . 2 . 35 Shots 1 | . . . 1 Rammed 1 | . 1 . . Targets Rammed 1 | . 1 . . Kicked . | . . . . Crushed . | . . . . Highest Temperature 249 | 102 10 127 249 Average Temperature 85 | 53 6 67 101 Received Heat Transfer 96 | 12 16 . 68 Siege Activations . | . . . . Martial Activations . | . . . . Shielding Activations . | . . . . Robots Disrupted . | . . . . Combat Hostiles . | . . . . Robots Corrupted . | . . . . Combat Hostiles . | . . . . Parts Fried . | . . . . Impact Corruptions . | . . . . Robots Melted . | . . . . Combat Hostiles . | . . . . Parts Melted . | . . . . Heat Transferred 124 | 124 . . . Parts Sabotaged . | . . . . Parts Stolen . | . . . . Parts Stripped . | . . . . Power Chain Reactions . | . . . . Alert | -11 -10 -10 -10 ------- Run | Yrd Mat Min Exi Maximum Alert Level . | . . . . Low Security (%) 100 | 100 100 100 . Level 1 . | . . . . Level 2 . | . . . . Level 3 . | . . . . Level 4 . | . . . . Level 5 . | . . . . High Security . | . . . . Max Security . | . . . . Peak Influence 132 | 20 132 24 . Initial 24 | . . 24 . Average 7 | . 64 1 . Influence Increases 349 | 20 329 . . Destroy 0b10 Robot/C 220 | 20 200 . . Destroy 0b10 Robot/NC 10 | . 10 . . Destroy Leader 40 | . 40 . . Successful Hack 4 | . 4 . . Disable Machine 30 | . 30 . . Destroy Structure 45 | . 45 . . Influence Decreases 349 | 20 265 64 . Entered New Map 40 | . . 40 . Time Decay 206 | 20 162 24 . Lost Part 40 | . 40 . . Purge Threat 63 | . 63 . . Squads Dispatched 2 | . 2 . . Investigation 1 | . 1 . . Extermination . | . . . . Reinforcement 1 | . 1 . . Assault . | . . . . Garrison . | . . . . Intercept . | . . . . Searches Triggered . | . . . . Construction Impeded . | . . . . Haulers Reinforced . | . . . . Active Scanning Responses . | . . . . Cargo Convoy Interrupts . | . . . . Stealth | -11 -10 -10 -10 --------- Run | Yrd Mat Min Exi Distress Signals 2 | . 2 . . Communications Jammed . | . . . . Distress Signals . | . . . . Times Spotted 25 | 1 17 . 7 Peak Tracking Total 10 | 1 4 . 10 Tactical Retreats . | . . . . Traps | -11 -10 -10 -10 ------- Run | Yrd Mat Min Exi Traps Triggered . | . . . . Indirectly . | . . . . Trap Hack Attempts . | . . . . Triggered . | . . . . Disarmed . | . . . . Reprogrammed . | . . . . Reused . | . . . . Traps Extracted . | . . . . Installed . | . . . . Triggered . | . . . . Machines | -11 -10 -10 -10 ---------- Run | Yrd Mat Min Exi Machines Disabled 5 | . 2 . 3 Max in Single Turn 2 | . 1 . 2 Machines Repaired . | . . . . Machines Dismantled . | . . . . Machines Sabotaged . | . . . . Overloaded Fab Kills . | . . . . Hacking | -11 -10 -10 -10 --------- Run | Yrd Mat Min Exi Machines Accessed 7 | . 3 . 4 Terminals 2 | . 2 . . Fabricators . | . . . . Repair Stations . | . . . . Recycling Units 1 | . 1 . . Scanalyzers . | . . . . Garrison Access . | . . . . Total Hacks 60 | . 11 . 49 Successful 57 | . 8 . 49 Failed 3 | . 3 . . Catastrophic . | . . . . Database Lockouts . | . . . . Manual 3 | . . . 3 Terminals 10 | . 10 . . Fabricators . | . . . . Repair Stations . | . . . . Recycling Units 1 | . 1 . . Scanalyzers . | . . . . Garrison Access . | . . . . Terminal Hacks 56 | . 7 . 49 Record 50 | . 1 . 49 Alert Level 3 | . 3 . . Unreport Threat 1 | . 1 . . Locate Traps 1 | . 1 . . Registered Components 1 | . 1 . . Fabricator Hacks . | . . . . Repair Station Hacks . | . . . . Recycling Unit Hacks 1 | . 1 . . Retrieve Components 1 | . 1 . . Scanalyzer . | . . . . Garrison Access Hacks . | . . . . Unauthorized Hacks . | . . . . Terminals . | . . . . Fabricators . | . . . . Repair Stations . | . . . . Recycling Units . | . . . . Scanalyzers . | . . . . Garrison Access . | . . . . Data Cores Recovered . | . . . . Used . | . . . . Hacking Detections 1 | . 1 . . Full Trace Events 1 | . 1 . . Feedback Events . | . . . . Feedback Blocked . | . . . . Robot Schematics Acquired . | . . . . Robots Built . | . . . . Authchips . | . . . . Time . | . . . . Total Robot Build Rating . | . . . . Part Schematics Acquired . | . . . . Parts Built . | . . . . Authchips . | . . . . Time . | . . . . Total Part Build Rating . | . . . . Parts Repaired . | . . . . Time . | . . . . Parts Recycled . | . . . . Recycled Matter . | . . . . Retrieved Matter . | . . . . Retrieved Components 3 | . 3 . . Parts Scanalyzed . | . . . . Part Schematics Acquired . | . . . . Parts Damaged . | . . . . Bothacking | -11 -10 -10 -10 ------------ Run | Yrd Mat Min Exi Used RIF Installer . | . . . . Robots Hacked . | . . . . Non-combat . | . . . . Combat . | . . . . Robot Hacks Applied . | . . . . Relay Couplers Released . | . . . . Fabnet Peak Effective % . | . . . . Robots Rewired . | . . . . Allies Hacked . | . . . . Hacks Repelled . | . . . . Allies | -11 -10 -10 -10 -------- Run | Yrd Mat Min Exi Total Allies . | . . . . Largest Group . | . . . . Highest-Rated Group . | . . . . Highest-Rated Ally . | . . . . Total Orders . | . . . . Ally Attacks . | . . . . Total Damage . | . . . . Kills . | . . . . Allies Corrupted . | . . . . Allies Melted . | . . . . Intel | -11 -10 -10 -10 ------- Run | Yrd Mat Min Exi Active Infowar (turns) 99 | . 99 . . Sensors 99 | . 99 . . Robot Analysis Total . | . . . . Derelict Logs Recovered . | . . . . Drone Launches . | . . . . Drone Recoveries . | . . . . Exploration | -11 -10 -10 -10 ------------- Run | Yrd Mat Min Exi Turns Passed 5349 | 2892 401 530 1526 Spaces Moved 2183 | 726 388 311 758 Core 1154 | 59 26 311 758 Treads . | . . . . Legs . | . . . . Wheels 1029 | 667 362 . . Hover . | . . . . Flight . | . . . . Fastest Speed 50 | 50 80 150 150 Average Speed 133 | 77 84 165 199 Slowest Speed 200 | 80 150 200 200 Overloaded Moves . | . . . . Propulsion Burnouts . | . . . . Robots Hopped . | . . . . Potential Cave-ins . | . . . . Cave-ins Triggered 1 | . 1 . . Exploration Rate (%) 59 | 42 49 55 91 Regions Visited 3 Branch Regions 2 Pre-discovered Areas 1 | . . . 1 Known Exits Taken . | . . . . Unknown Exits Taken 3 | 1 1 1 . Scrap Searched 1 | . . 1 . Spaces Dug 8 | . 8 . . Terrain Destroyed 45 | . 42 . 3 Melee . | . . . . Projectile . | . . . . AOE 45 | . 42 . 3 Terrain Rammed . | . . . . Walls Destroyed . | . . . . Machines Disabled . | . . . . Actions | -11 -10 -10 -10 --------- Run | Yrd Mat Min Exi Total 4582 | 3048 440 328 766 Wait 2328 | 2307 8 11 2 Move 2180 | 725 387 310 758 Hop . | . . . . Pick Up 20 | 8 9 3 . Fast Attach 1 | 1 . . . Attach 15 | 4 6 3 2 Detach 1 | . 1 . . Swap 1 | . 1 . . Drop 7 | . 6 1 . Fire 28 | 3 21 . 4 Melee . | . . . . Ram 1 | . 1 . . Kick . | . . . . Crush . | . . . . Escape Stasis . | . . . . Rewire . | . . . . Trap . | . . . . Miscellaneous . | . . . . Route ------- -11/Scrapyard -10/Materials (discovered 2 exits: [*Min x2]) -10/Mines -10/Exiles (discovered 2 exits: [*Min x2]) History --------- Turn | Location | Event 2 | -11/Scrapyard | Met Revision 17 183 | -11/Scrapyard | Discovered new exit (range 8) 2893 | -11/Scrapyard | Entered Materials 2894 | -10/Materials | Build established: Mutant 3028 | -10/Materials | Discovered new exit (range 12) 3064 | -10/Materials | Discovered new exit (range 11) 3256 | -10/Materials | Crushed by falling debris 3256 | -10/Materials | Core integrity fell below 50% 3256 | -10/Materials | System corruption reached 10% 3287 | -10/Materials | Lost 4 parts (2n2u) 3294 | -10/Materials | Entered Mines 3623 | -10/Mines | Received a Rocket Launcher from a helpful Derelict 3810 | -10/Mines | Deemed a non-threat by the Exiles lab entrance 3812 | -10/Mines | Discovered new exit (range 5) 3824 | -10/Mines | Entered Exiles 3874 | -10/Exiles | Discovered new exit (range 15) 3902 | -10/Exiles | Met 8R-AWN 3948 | -10/Exiles | Met EX-HEX 4052 | -10/Exiles | Met EX-DEC 4074 | -10/Exiles | Learned location of Zion (-7) 4180 | -10/Exiles | Discovered new exit (range 14) 4389 | -10/Exiles | Visited The Gauntlet 4760 | -10/Exiles | Met EX-BIN 4874 | -10/Exiles | Aligned with FarCom system 4876 | -10/Exiles | Given EX-Vault access code 5331 | -10/Exiles | Attacked by the Exiles 5345 | -10/Exiles | Core integrity fell below 20% 5350 | -10/Exiles | Destroyed by as-23121 with Assembled Rifle Last Messages --------------- 05330_ Machine disabled. 05331_ EXILES: Hostile robot within lab perimeter. Defensive protocols time, folks! 05333_ Critical hit (Destroy). 05333_ Lgt. Ion Engine destroyed. 05336_ EX-BIN: "I just want to science!" 05340_ as-63215 destroyed. 05340_ as-98496 destroyed. 05343_ Grenade Launcher destroyed. 05344_ Targeting Computer destroyed. 05344_ System corrupted by crushing effect (+4). 05344_ Knocked back. 05344_ as-12700 destroyed. 05344_ Machine disabled. 05344_ Shield Generator destroyed. 05344_ Destroyed Shield Generator. 05344_ Machine disabled. 05347_ Penetrated by HV Slug. 05348_ Rocket Launcher destroyed. 05348_ System corrupted by crushing effect (+5). Map ----- +----------------------------------------------------+ | ??????????? "?????# #?#"""""""#?????????????? | | ??????????""" ?????# #?#"""""""#?????????????? | | ??????????""" ????## ###"" """"#?????????????? | | ????????????" ????#" """"#?????????????? | | ????????????##????#" """#?????????????? | | ??????????????????#" """#?????????????? | | ??????????????????#" """#?????????????? | | ????#######???????#" """#?????????????? | | ???# """#???????#" """##????????????? | | ???#"" """#???????## """""????????????? | | ???#"" #????????# """##????????????? | | ???#"" #????????#" "X" """""????????????? | | ???#"" "#????????#" """ # ????????????? | | ???# ""#????????#" """""""""#?????????????? | | ???#"" ""#???????##" ###########?????????????? | | ???### ###??????##"" #???????????????????????? | | ???### ###?######"" #???????????????????????? | | ####X# #"###"""""" ##??????????????????????? | | """""" " " ##???###########???????? | | "" """ " #####"""""""""##??????? | | " " " """ """"##?????? | | "" " #?????? | | " """#?????? | | " "#?????? | | " "##????? | | @a ""###??? | | " """""" % a """#??? | | ######"" "#??? | | ""##????#### ##?? | | """##????????# ##? | | """##?????????###"" ## | | ""#???????????##"" | | ########??####"""" | | ## ####""" | | """" aa | | # | | " ## | | " ##? | | " "" """ ""#?? | | "" ""## ##""" " " ""#" "##?? | | ""#### ######""" """##"""""""##??? | | """"##??# #????###""""###########???? | | " """#???# #??????######?????????????? | | ""##???! ?????????????????????????? | | " """##???#" ????????????????????????? | | """ ##????#" ????????????????????????? | | #"""" ##?????#!!""!"???????????????????????? | | ### #???????######???????????????????????? | | ??##### ##????????????????????????????????????? | | ??????## #?????????????????????????????????????? | +----------------------------------------------------+ Best States ------------- Heat Dissipation 25 Energy Generation 10 Energy Capacity 375 Matter Stores 300 Matter Capacity 300 Sight Range 16 Robot Scan Range 14 Terrain Scan Density 10 Evasion (%) 50 Targeting Accuracy 5 Item Schematics ----------------- None Robot Schematics ------------------ None Fabricated ------------ Nothing Repaired ---------- Nothing Alien Tech Used ----------------- None Achievements -------------- Everything Is Under Control Librarian Maybe Next Time I'll Detach My Launcher Unlikely Earthworm Challenges ------------ None Game ------ Seed TeslaLongswordChronowheel Manual? 0 Play Time 00:36:27 Cumulative 1.7 hours Start 2025.08.23 @ 22:52:48 End 2025.08.23 @ 23:35:57 Sessions 1 Manual Loads 0 Difficulty Rogue Special Mode None Game No. 2 Rogue 2 Adventurer 0 Explorer 0 Win Type - Total 0 Types 0/0/0/0/0/0/0/0/0/0 Lore% 5 Gallery% 3 Achievement% 4 Wizard Run 0 Options --------- Layout 0 ASCII 0 Keyboard 0 Movement Arrows Keybinds 0 Fullscreen 1 Font 18/SmallcapsGlow Map View 76x50 Zoom Use 0% Tactical HUD 1 Map Filters NONE Filters NONE Steam 1 RUN: 0dac0b79-f30a-4f56-96bb-410a48db945e